[Event "HUN-ch Rapid 2019"]
[Site "Ajka"]
[Date "2019.07.20"]
[Round "9.18"]
[White "Egresi, Mate"]
[Black "Borhy, Marcell"]
[Result "1/2-1/2"]
[ECO "A55"]
[WhiteElo "2341"]
[BlackElo "2382"]
[Annotator "NA"]
[PlyCount "110"]
[EventDate "2019.07.18"]
[EventType "swiss"]
[EventCountry "HUN"]
[SourceTitle "playchess.com"]
[Source "ChessBase"]
[SourceQuality "1"]
[TimeControl "1200+5"]

1. d4 {[%emt 0:00:08]} d6 {[%emt 0:00:03]} 2. Nf3 {[%emt 0:00:50]} Nf6 {[%emt 0:00:02]} 3. c4 {[%emt 0:00:02]} Nbd7 {[%emt 0:00:02]} 4. Nc3 {[%emt 0:00:01]} e5 {[%emt 0:00:01]} 5. e4 {[%emt 0:00:01]} Be7 {[%emt 0:00:13]} 6. Be2 {[%emt 0:00:02]} O-O {[%emt 0:00:08]} 7. O-O {[%emt 0:00:02]} c6 {[%emt 0:00:14]} 8. d5 {[%emt 0:00:02]} cxd5 {[%emt 0:00:22]} 9. cxd5 {[%emt 0:00:03]} a6 {[%emt 0:00:20]} 10. Be3 {[%emt 0:01:31]} b5 {[%emt 0:00:06]} 11. a4 {[%emt 0:00:11]} b4 {[%emt 0:00:12]} 12. Na2 {[%emt 0:00:02]} a5 {[%emt 0:00:16]} 13. Nd2 {[%emt 0:00:28]} Nb6 {[%emt 0:00:57]} 14. Bb5 {[%emt 0:00:34]} Bd7 {[%emt 0:00:18]} 15. Bxd7 {[%emt 0:00:09]} Nfxd7 {[%emt 0:00:03]} 16. Nc1 {[%emt 0:00:30]} Bg5 {[%emt 0:00:05]} 17. Ncb3 {[%emt 0:02:02]} Bxe3 {[%emt 0:00:32]} 18. fxe3 {[%emt 0:00:01]} Qc7 {[%emt 0:01:29]} 19. Qe2 {[%emt 0:00:03]} Rfc8 {[%emt 0:01:30]} 20. Rfc1 {[%emt 0:00:15]} Qa7 {[%emt 0:01:00]} 21. Qb5 {[%emt 0:00:26]} Rxc1+ {[%emt 0:02:34]} 22. Rxc1 {[%emt 0:00:04]} Kf8 {[%emt 0:00:03]} 23. Kf2 {[%emt 0:01:54]} Ke7 {[%emt 0:00:32]} 24. Nc4 {[%emt 0:00:17]} Nxc4 {[%emt 0:02:00]} 25. Rxc4 {[%emt 0:00:02]} Qa6 {[%emt 0:00:30]} 26. Qxa6 {[%emt 0:02:02]} Rxa6 {[%emt 0:00:01]} 27. Rc6 {[%emt 0:00:01]} Rxc6 {[%emt 0:00:40]} 28. dxc6 {[%emt 0:00:02]} Nc5 {[%emt 0:00:03]} 29. Nxa5 {[%emt 0:00:24]} Nd3+ {[%emt 0:00:44]} 30. Ke2 {[%emt 0:01:36]} Nxb2 {[%emt 0:00:02]} 31. Kd2 {[%emt 0:00:10]} Nxa4 {[%emt 0:00:27]} 32. Kd3 {[%emt 0:00:02]} Nc5+ {[%emt 0:01:47]} 33. Kc4 {[%emt 0:00:05]} Kd8 {[%emt 0:00:10]} 34. Kd5 {[%emt 0:02:32]} Kc7 {[%emt 0:00:57]} 35. Nc4 {[%emt 0:00:01]} Nxe4 {[%emt 0:02:36]} 36. Kxe4 {[%emt 0:00:03]} Kxc6 {[%emt 0:00:43]} 37. Kd3 {[%emt 0:03:35]} f5 {[%emt 0:00:13]} 38. Kc2 {[%emt 0:00:49]} Kc5 {[%emt 0:00:40]} 39. Kb3 {[%emt 0:00:06]} g5 {[%emt 0:00:08]} 40. Na5 {[%emt 0:00:30]} f4 {[%emt 0:00:14]} 41. exf4 {[%emt 0:00:45]} gxf4 {[%emt 0:00:03]} 42. Nb7+ {[%emt 0:00:01]} Kd4 {[%emt 0:00:18]} 43. Nxd6 {[%emt 0:00:12]} e4 {[%emt 0:00:01]} 44. Kxb4 {[%emt 0:00:28]} f3 {[%emt 0:00:05]} 45. gxf3 {[%emt 0:00:06]} exf3 {[%emt 0:00:01]} 46. Nf5+ {[%emt 0:00:04]} Ke4 {[%emt 0:00:05]} 47. Ng3+ {[%emt 0:00:02]} Ke3 {[%emt 0:00:04]} 48. h4 {[%emt 0:00:30]} Kf2 {[%emt 0:00:13]} 49. Nf5 {[%emt 0:00:07]} Kg2 {[%emt 0:00:02]} 50. Kc3 {[%emt 0:00:10]} f2 {[%emt 0:00:01]} 51. Ne3+ {[%emt 0:00:01]} Kg3 {[%emt 0:00:04]} 52. h5 {[%emt 0:00:05]} Kh4 {[%emt 0:00:02]} 53. h6 {[%emt 0:00:06]} Kg5 {[%emt 0:00:01]} 54. Kd3 {[%emt 0:00:02]} Kxh6 {[%emt 0:00:02]} 55. Ng4+ {[%emt 0:00:01]} Kg5 {[%emt 0:00:01]} 1/2-1/2

[Event "HUN-ch Rapid 2019"]
[Site "Ajka"]
[Date "2019.07.20"]
[Round "9.19"]
[White "Deak, Sandor"]
[Black "Forgacs, Attila Jr."]
[Result "1/2-1/2"]
[ECO "A53"]
[WhiteElo "2279"]
[BlackElo "1706"]
[Annotator "NA"]
[PlyCount "84"]
[EventDate "2019.07.18"]
[EventType "swiss"]
[EventCountry "HUN"]
[SourceTitle "playchess.com"]
[Source "ChessBase"]
[SourceQuality "1"]
[TimeControl "1200+5"]

1. d4 {[%emt 0:00:03]} Nf6 {[%emt 0:00:01]} 2. c4 {[%emt 0:00:00]} d6 {[%emt 0:00:02]} 3. Nc3 {[%emt 0:00:02]} Nbd7 {[%emt 0:00:01]} 4. e4 {[%emt 0:00:36]} e5 {[%emt 0:00:02]} 5. Nf3 {[%emt 0:00:21]} g6 {[%emt 0:00:02]} 6. g3 {[%emt 0:00:16]} Bg7 {[%emt 0:00:02]} 7. Bg2 {[%emt 0:00:00]} O-O {[%emt 0:00:05]} 8. O-O {[%emt 0:00:02]} exd4 {[%emt 0:00:02]} 9. Nxd4 {[%emt 0:00:00]} Re8 {[%emt 0:00:01]} 10. Re1 {[%emt 0:00:09]} a6 {[%emt 0:00:03]} 11. h3 {[%emt 0:00:11]} Rb8 {[%emt 0:00:01]} 12. Bg5 {[%emt 0:00:20]} h6 {[%emt 0:00:03]} 13. Be3 {[%emt 0:00:00]} Ne5 {[%emt 0:00:09]} 14. b3 {[%emt 0:00:03]} c5 {[%emt 0:00:03]} 15. Nde2 {[%emt 0:00:02]} b5 {[%emt 0:00:08]} 16. cxb5 {[%emt 0:00:02]} axb5 {[%emt 0:00:05]} 17. Nf4 {[%emt 0:01:31]} b4 {[%emt 0:01:24]} 18. Ncd5 {[%emt 0:00:02]} Nxd5 {[%emt 0:00:04]} 19. Nxd5 {[%emt 0:00:02]} c4 {[%emt 0:00:41]} 20. bxc4 {[%emt 0:00:15]} Nxc4 {[%emt 0:00:04]} 21. Bd4 {[%emt 0:00:01]} Bxd4 {[%emt 0:01:13]} 22. Qxd4 {[%emt 0:00:02]} Ne5 {[%emt 0:00:27]} 23. f4 {[%emt 0:00:06]} Nd7 {[%emt 0:00:36]} 24. Nxb4 {[%emt 0:03:41]} Qb6 {[%emt 0:01:33]} 25. Qxb6 {[%emt 0:00:03]} Rxb6 {[%emt 0:00:08]} 26. Nd5 {[%emt 0:00:14]} Rb2 {[%emt 0:00:19]} 27. Reb1 {[%emt 0:00:27]} Rc2 {[%emt 0:00:18]} 28. Rc1 {[%emt 0:00:07]} Rxc1+ {[%emt 0:00:09]} 29. Rxc1 {[%emt 0:00:01]} Bb7 {[%emt 0:00:09]} 30. Rc7 {[%emt 0:06:43]} Bxd5 {[%emt 0:00:02]} 31. Rxd7 {[%emt 0:03:32]} Bxe4 {[%emt 0:00:03]} 32. Bxe4 {[%emt 0:00:07]} Rxe4 {[%emt 0:00:01]} 33. Rxd6 {[%emt 0:00:00]} Ra4 {[%emt 0:00:09]} 34. Rd2 {[%emt 0:00:03]} Kg7 {[%emt 0:00:02]} 35. Kf2 {[%emt 0:00:02]} Ra3 {[%emt 0:00:02]} 36. Kg2 {[%emt 0:00:12]} Kf6 {[%emt 0:00:03]} 37. Kh2 {[%emt 0:00:02]} Ke6 {[%emt 0:00:12]} 38. Rg2 {[%emt 0:00:09]} Kf5 {[%emt 0:00:08]} 39. Re2 {[%emt 0:00:17]} h5 {[%emt 0:00:22]} 40. Re5+ {[%emt 0:00:46]} Kf6 {[%emt 0:00:02]} 41. Re2 {[%emt 0:00:56]} Kf5 {[%emt 0:00:01]} 42. Re5+ {[%emt 0:00:30]} Kf6 {[%emt 0:00:01]} 1/2-1/2

[Event "HUN-ch Rapid 2019"]
[Site "Ajka"]
[Date "2019.07.20"]
[Round "9.20"]
[White "Balint, Vilmos"]
[Black "Nemeth, Zoltan"]
[Result "1/2-1/2"]
[ECO "A05"]
[WhiteElo "2203"]
[BlackElo "2275"]
[Annotator "NA"]
[PlyCount "160"]
[EventDate "2019.07.18"]
[EventType "swiss"]
[EventCountry "HUN"]
[SourceTitle "playchess.com"]
[Source "ChessBase"]
[SourceQuality "1"]
[TimeControl "1200+5"]

1. Nf3 {[%emt 0:00:03]} Nf6 {[%emt 0:00:08]} 2. g3 {[%emt 0:00:01]} b6 {[%emt 0:00:00]} 3. Bg2 {[%emt 0:00:04]} Bb7 {[%emt 0:00:01]} 4. c4 {[%emt 0:00:04]} g6 {[%emt 0:00:03]} 5. d4 {[%emt 0:00:07]} Bg7 {[%emt 0:00:02]} 6. O-O {[%emt 0:00:03]} O-O {[%emt 0:00:01]} 7. Nc3 {[%emt 0:00:02]} Ne4 {[%emt 0:00:04]} 8. Bd2 {[%emt 0:00:07]} d6 {[%emt 0:00:21]} 9. Rc1 {[%emt 0:00:56]} Nd7 {[%emt 0:00:10]} 10. Be1 {[%emt 0:00:50]} Nxc3 {[%emt 0:00:15]} 11. Bxc3 {[%emt 0:00:04]} Be4 {[%emt 0:01:34]} 12. Bh3 {[%emt 0:00:44]} Bxf3 {[%emt 0:01:58]} 13. exf3 {[%emt 0:00:02]} c5 {[%emt 0:00:06]} 14. f4 {[%emt 0:03:12]} cxd4 {[%emt 0:00:10]} 15. Bxd4 {[%emt 0:00:01]} Bxd4 {[%emt 0:00:01]} 16. Qxd4 {[%emt 0:00:02]} Rc8 {[%emt 0:00:07]} 17. Rfe1 {[%emt 0:00:18]} Rc7 {[%emt 0:00:21]} 18. Rc3 {[%emt 0:00:18]} Nf6 {[%emt 0:01:08]} 19. Rce3 {[%emt 0:00:28]} e5 {[%emt 0:02:43]} 20. fxe5 {[%emt 0:00:24]} dxe5 {[%emt 0:00:01]} 21. Qh4 {[%emt 0:01:24]} e4 {[%emt 0:01:07]} 22. b3 {[%emt 0:00:19]} Kg7 {[%emt 0:00:54]} 23. Bg2 {[%emt 0:00:30]} Re7 {[%emt 0:00:17]} 24. Bxe4 {[%emt 0:05:11]} Rfe8 {[%emt 0:00:34]} 25. Bf3 {[%emt 0:00:16]} Rxe3 {[%emt 0:00:06]} 26. Rxe3 {[%emt 0:00:02]} Rxe3 {[%emt 0:00:01]} 27. fxe3 {[%emt 0:00:01]} Qd2 {[%emt 0:00:06]} 28. Qd4 {[%emt 0:00:02]} Qxa2 {[%emt 0:00:05]} 29. g4 {[%emt 0:00:53]} h6 {[%emt 0:02:25]} 30. h4 {[%emt 0:00:15]} g5 {[%emt 0:01:34]} 31. hxg5 {[%emt 0:00:22]} hxg5 {[%emt 0:00:01]} 32. Qe5 {[%emt 0:01:01]} Qa5 {[%emt 0:00:45]} 33. Qd4 {[%emt 0:02:47]} Qc5 {[%emt 0:00:35]} 34. Kg2 {[%emt 0:00:09]} a5 {[%emt 0:00:01]} 35. Qc3 {[%emt 0:00:16]} Qd6 {[%emt 0:00:16]} 36. e4 {[%emt 0:00:11]} Qe6 {[%emt 0:00:53]} 37. Qe3 {[%emt 0:00:11]} Kh6 {[%emt 0:00:13]} 38. Kh3 {[%emt 0:00:19]} Nd7 {[%emt 0:00:01]} 39. Qd4 {[%emt 0:00:14]} f6 {[%emt 0:01:19]} 40. Bd1 {[%emt 0:00:24]} Ne5 {[%emt 0:00:08]} 41. Qd8 {[%emt 0:00:18]} Ng6 {[%emt 0:00:03]} 42. Qd4 {[%emt 0:00:12]} Qe5 {[%emt 0:00:15]} 43. Qxe5 {[%emt 0:00:19]} fxe5 {[%emt 0:00:02]} 44. Kg3 {[%emt 0:00:03]} Kg7 {[%emt 0:00:09]} 45. Kf3 {[%emt 0:00:01]} Kf6 {[%emt 0:00:01]} 46. Ke3 {[%emt 0:00:00]} Ke7 {[%emt 0:00:01]} 47. Kd3 {[%emt 0:00:00]} Kd6 {[%emt 0:00:00]} 48. Kc3 {[%emt 0:00:02]} Kc5 {[%emt 0:00:01]} 49. Be2 {[%emt 0:00:05]} Ne7 {[%emt 0:00:39]} 50. Bf1 {[%emt 0:00:04]} Nc8 {[%emt 0:00:01]} 51. Bd3 {[%emt 0:00:03]} Nd6 {[%emt 0:00:01]} 52. Bc2 {[%emt 0:00:00]} b5 {[%emt 0:00:01]} 53. cxb5 {[%emt 0:00:03]} Nxb5+ {[%emt 0:00:01]} 54. Kb2 {[%emt 0:00:36]} Kb4 {[%emt 0:00:01]} 55. Bd3 {[%emt 0:00:02]} Nd4 56. Bc2 Nf3 {[%emt 0:01:27]} 57. Bd1 {[%emt 0:00:05]} Nd4 {[%emt 0:00:47]} 58. Bc2 {[%emt 0:00:01]} Kc5 {[%emt 0:00:08]} 59. Bd3 {[%emt 0:00:05]} Nc6 {[%emt 0:00:12]} 60. Kc3 {[%emt 0:00:03]} Nd4 {[%emt 0:00:16]} 61. Bc4 {[%emt 0:00:02]} Nf3 {[%emt 0:00:12]} 62. Be2 {[%emt 0:00:03]} Nh4 {[%emt 0:00:03]} 63. Bc4 {[%emt 0:00:04]} Ng6 {[%emt 0:00:06]} 64. Bf1 {[%emt 0:00:06]} Ne7 {[%emt 0:00:01]} 65. Bc4 {[%emt 0:00:01]} Nc6 {[%emt 0:00:01]} 66. Bf1 {[%emt 0:00:05]} Na7 {[%emt 0:00:01]} 67. Bd3 {[%emt 0:00:01]} Nb5+ {[%emt 0:00:00]} 68. Bxb5 {[%emt 0:00:19]} Kxb5 {[%emt 0:00:01]} 69. Kc2 {[%emt 0:00:08]} Kc6 {[%emt 0:00:25]} 70. Kd3 {[%emt 0:00:05]} Kb5 {[%emt 0:00:08]} 71. Kc3 {[%emt 0:00:01]} Kc5 {[%emt 0:00:01]} 72. Kd3 {[%emt 0:00:02]} Kb4 {[%emt 0:00:09]} 73. Kc2 {[%emt 0:00:01]} Kb5 {[%emt 0:00:08]} 74. Kc3 {[%emt 0:00:01]} Kc5 {[%emt 0:00:01]} 75. Kd3 {[%emt 0:00:00]} Kb5 {[%emt 0:00:08]} 76. Kc3 {[%emt 0:00:02]} Kc5 {[%emt 0:00:02]} 77. Kd3 {[%emt 0:00:00]} Kb4 {[%emt 0:00:07]} 78. Kc2 {[%emt 0:00:01]} Kc5 {[%emt 0:00:07]} 79. Kd3 {[%emt 0:00:04]} Kb5 {[%emt 0:00:01]} 80. Kc3 {[%emt 0:00:00]} Kc5 {[%emt 0:00:05]} 1/2-1/2

[Event "HUN-ch Rapid 2019"]
[Site "Ajka"]
[Date "2019.07.21"]
[Round "10.2"]
[White "Hera, Imre Jr."]
[Black "Gledura, Benjamin"]
[Result "1/2-1/2"]
[ECO "A00"]
[WhiteElo "2610"]
[BlackElo "2654"]
[Annotator "ChessBase"]
[PlyCount "84"]
[EventDate "2019.07.18"]
[EventType "swiss"]
[EventCountry "HUN"]
[SourceTitle "playchess.com"]
[Source "ChessBase"]
[SourceQuality "1"]
[TimeControl "1200+5"]

1. g3 {[%emt 0:00:17]} d5 {[%emt 0:00:53]} 2. Bg2 {[%emt 0:00:02]} c6 {[%emt 0:00:11]} 3. d3 {[%emt 0:00:10]} g6 {[%emt 0:00:10]} 4. Nd2 {[%emt 0:00:02]} Bg7 {[%emt 0:00:02]} 5. e4 {[%emt 0:00:02]} e5 {[%emt 0:00:21]} 6. Ngf3 {[%emt 0:00:06]} Ne7 {[%emt 0:00:04]} 7. O-O {[%emt 0:00:03]} O-O {[%emt 0:00:02]} 8. b4 {[%emt 0:00:02]} a5 {[%emt 0:01:33]} 9. bxa5 {[%emt 0:00:03]} Rxa5 {[%emt 0:00:37]} 10. Bb2 {[%emt 0:00:08]} Qc7 {[%emt 0:01:05]} 11. a4 {[%emt 0:00:35]} h6 {[%emt 0:01:04]} 12. Re1 {[%emt 0:01:32]} dxe4 {[%emt 0:01:50]} 13. Nxe4 {[%emt 0:00:36]} Bf5 {[%emt 0:01:54]} 14. Nfd2 {[%emt 0:01:37]} Be6 {[%emt 0:00:47]} 15. Nb3 {[%emt 0:01:37]} Bxb3 {[%emt 0:00:28]} 16. cxb3 {[%emt 0:00:01]} Nf5 {[%emt 0:00:03]} 17. b4 {[%emt 0:00:15]} Rd5 {[%emt 0:00:16]} 18. h4 {[%emt 0:01:37]} Nd4 {[%emt 0:00:09]} 19. h5 {[%emt 0:00:10]} g5 {[%emt 0:00:06]} 20. g4 {[%emt 0:00:47]} Rfd8 {[%emt 0:01:34]} 21. Ng3 {[%emt 0:00:47]} R5d7 {[%emt 0:00:04]} 22. Be4 {[%emt 0:00:07]} Na6 {[%emt 0:00:08]} 23. Bc3 {[%emt 0:00:14]} Bf8 {[%emt 0:02:31]} 24. Rb1 {[%emt 0:00:04]} c5 {[%emt 0:00:03]} 25. Bxd4 {[%emt 0:00:37]} Rxd4 {[%emt 0:00:53]} 26. Qf3 {[%emt 0:00:05]} Qd7 {[%emt 0:00:03]} 27. b5 {[%emt 0:03:26]} Nb4 {[%emt 0:01:17]} 28. Nf5 {[%emt 0:00:02]} Nxd3 {[%emt 0:00:14]} 29. Nxd4 {[%emt 0:02:56]} Nxe1 {[%emt 0:00:02]} 30. Qf5 {[%emt 0:00:01]} Qxf5 {[%emt 0:00:02]} 31. Nxf5 {[%emt 0:00:01]} Nd3 {[%emt 0:00:01]} 32. Bxb7 {[%emt 0:00:56]} c4 {[%emt 0:00:01]} 33. Ne3 {[%emt 0:00:22]} c3 {[%emt 0:01:56]} 34. Be4 {[%emt 0:00:08]} Bc5 {[%emt 0:00:20]} 35. Rd1 {[%emt 0:01:56]} Bxe3 {[%emt 0:00:20]} 36. Rxd3 {[%emt 0:00:10]} Bd4 {[%emt 0:00:08]} 37. Rf3 {[%emt 0:00:41]} Rc8 {[%emt 0:00:01]} 38. Bc2 {[%emt 0:00:02]} Rc4 {[%emt 0:00:01]} 39. Kf1 {[%emt 0:00:04]} Rb4 {[%emt 0:00:31]} 40. Ke2 {[%emt 0:00:02]} Kg7 {[%emt 0:00:11]} 41. Kd3 {[%emt 0:00:16]} f6 {[%emt 0:00:15]} 42. Rh3 {[%emt 0:00:12]} Bxf2 {[%emt 0:00:25] Ke4} 1/2-1/2

[Event "HUN-ch Rapid 2019"]
[Site "Ajka"]
[Date "2019.07.21"]
[Round "10.3"]
[White "Ruck, Robert"]
[Black "Papp, Gabor"]
[Result "1/2-1/2"]
[ECO "A04"]
[WhiteElo "2524"]
[BlackElo "2587"]
[Annotator "ChessBase"]
[PlyCount "36"]
[EventDate "2019.07.18"]
[EventType "swiss"]
[EventCountry "HUN"]
[SourceTitle "playchess.com"]
[Source "ChessBase"]
[SourceQuality "1"]
[TimeControl "1200+5"]

1. Nf3 {[%emt 0:01:26]} c5 {[%emt 0:00:03]} 2. g3 {[%emt 0:00:05]} Nc6 {[%emt 0:00:06]} 3. Bg2 {[%emt 0:00:02]} g6 {[%emt 0:00:03]} 4. c3 {[%emt 0:00:01]} Bg7 {[%emt 0:00:27]} 5. d4 {[%emt 0:00:03]} cxd4 {[%emt 0:00:02]} 6. cxd4 {[%emt 0:00:02]} d5 {[%emt 0:00:23]} 7. Nc3 {[%emt 0:00:06]} e6 {[%emt 0:00:56]} 8. O-O {[%emt 0:00:06]} Nge7 {[%emt 0:00:00]} 9. b3 {[%emt 0:00:12]} O-O {[%emt 0:00:06]} 10. e3 {[%emt 0:00:01]} b6 {[%emt 0:00:07]} 11. Ba3 {[%emt 0:00:03]} Ba6 {[%emt 0:00:05]} 12. Re1 {[%emt 0:00:03]} Rc8 {[%emt 0:00:14]} 13. Qd2 {[%emt 0:00:03]} Re8 {[%emt 0:00:04]} 14. Bf1 {[%emt 0:00:34]} Bxf1 {[%emt 0:00:06]} 15. Rxf1 {[%emt 0:00:01]} Nf5 {[%emt 0:00:14]} 16. Rac1 {[%emt 0:00:05]} Bf8 {[%emt 0:00:41]} 17. Bxf8 {[%emt 0:00:23]} Rxf8 {[%emt 0:00:02]} 18. Ne1 {[%emt 0:00:27]} Nd6 {[%emt 0:00:20]} 1/2-1/2

[Event "HUN-ch Rapid 2019"]
[Site "Ajka"]
[Date "2019.07.21"]
[Round "10.4"]
[White "Horvath, Peter"]
[Black "Balog, Imre"]
[Result "1-0"]
[ECO "A48"]
[WhiteElo "2418"]
[BlackElo "2566"]
[Annotator "ChessBase"]
[PlyCount "75"]
[EventDate "2019.07.18"]
[EventType "swiss"]
[EventCountry "HUN"]
[SourceTitle "playchess.com"]
[Source "ChessBase"]
[SourceQuality "1"]
[TimeControl "1200+5"]

1. d4 {[%emt 0:00:03]} Nf6 {[%emt 0:00:02]} 2. Nf3 {[%emt 0:00:04]} g6 {[%emt 0:00:07]} 3. c4 {[%emt 0:00:04]} c5 {[%emt 0:00:07]} 4. d5 {[%emt 0:00:09]} b5 {[%emt 0:00:01]} 5. cxb5 {[%emt 0:00:27]} a6 {[%emt 0:00:03]} 6. bxa6 {[%emt 0:00:01]} Bg7 {[%emt 0:00:02]} 7. Nc3 {[%emt 0:00:07]} O-O {[%emt 0:00:05]} 8. e4 {[%emt 0:00:53]} Qa5 {[%emt 0:00:07]} 9. Bd2 {[%emt 0:01:03]} Bxa6 {[%emt 0:00:05]} 10. Rb1 {[%emt 0:02:01]} Bxf1 {[%emt 0:01:59]} 11. Kxf1 {[%emt 0:00:02]} e6 {[%emt 0:00:04]} 12. g3 {[%emt 0:01:41]} Qb4 {[%emt 0:02:23]} 13. Qe2 {[%emt 0:01:58]} Qb7 {[%emt 0:00:57]} 14. Bg5 {[%emt 0:02:27]} Nxd5 {[%emt 0:00:49]} 15. Kg2 {[%emt 0:04:44]} Nxc3 {[%emt 0:01:02]} 16. bxc3 {[%emt 0:00:02]} Qa7 {[%emt 0:01:04]} 17. e5 {[%emt 0:01:16]} Nc6 {[%emt 0:00:23]} 18. Rb2 {[%emt 0:00:14]} Qc7 {[%emt 0:03:48]} 19. Re1 {[%emt 0:00:50]} Ra3 {[%emt 0:00:16]} 20. Rc2 {[%emt 0:00:19]} Rfa8 {[%emt 0:00:18]} 21. h4 {[%emt 0:00:05]} Qb7 {[%emt 0:00:52]} 22. Bf6 {[%emt 0:00:38]} d5 {[%emt 0:01:51]} 23. Bxg7 {[%emt 0:00:17]} Kxg7 {[%emt 0:00:01]} 24. h5 {[%emt 0:00:01]} d4 {[%emt 0:00:10]} 25. Qe4 {[%emt 0:00:03]} Rxc3 {[%emt 0:00:50]} 26. h6+ {[%emt 0:01:34]} Kg8 {[%emt 0:00:43]} 27. Rxc3 {[%emt 0:00:31]} dxc3 {[%emt 0:00:01]} 28. Rc1 {[%emt 0:00:05]} Rxa2 {[%emt 0:03:16]} 29. Rxc3 {[%emt 0:00:17]} Ra5 {[%emt 0:00:09]} 30. Rd3 {[%emt 0:00:05]} Ra8 {[%emt 0:00:15]} 31. Rd6 {[%emt 0:00:11]} Rc8 {[%emt 0:00:14]} 32. Ng5 {[%emt 0:00:14]} c4 {[%emt 0:00:17]} 33. Kh2 {[%emt 0:00:02]} c3 {[%emt 0:00:04]} 34. Qf3 {[%emt 0:00:09]} f5 {[%emt 0:00:15]} 35. exf6 {[%emt 0:00:04]} c2 {[%emt 0:00:03]} 36. f7+ {[%emt 0:00:02]} Kf8 {[%emt 0:00:01]} 37. Qf6 {[%emt 0:00:07]} Nd4 {[%emt 0:00:09]} 38. Nxh7# 1-0

[Event "HUN-ch Rapid 2019"]
[Site "Ajka"]
[Date "2019.07.21"]
[Round "10.5"]
[White "Karacsonyi, Gellert"]
[Black "Prohaszka, Peter"]
[Result "1-0"]
[ECO "B11"]
[WhiteElo "2315"]
[BlackElo "2598"]
[Annotator "ChessBase"]
[PlyCount "83"]
[EventDate "2019.07.18"]
[EventType "swiss"]
[EventCountry "HUN"]
[SourceTitle "playchess.com"]
[Source "ChessBase"]
[SourceQuality "1"]
[TimeControl "1200+5"]

1. e4 {[%emt 0:00:02]} c6 {[%emt 0:00:01]} 2. Nc3 {[%emt 0:00:01]} d5 {[%emt 0:00:01]} 3. Nf3 {[%emt 0:00:02]} Bg4 {[%emt 0:00:01]} 4. h3 {[%emt 0:00:02]} Bxf3 {[%emt 0:00:01]} 5. Qxf3 {[%emt 0:00:01]} e6 {[%emt 0:00:01]} 6. Be2 {[%emt 0:00:01]} Nd7 {[%emt 0:00:03]} 7. O-O {[%emt 0:00:25]} g6 {[%emt 0:02:31]} 8. Re1 {[%emt 0:00:17]} d4 {[%emt 0:00:56]} 9. Nd1 {[%emt 0:00:13]} Bg7 {[%emt 0:00:03]} 10. d3 {[%emt 0:00:48]} Ne7 {[%emt 0:00:03]} 11. Qg3 {[%emt 0:00:16]} O-O {[%emt 0:00:35]} 12. f4 {[%emt 0:00:21]} f5 {[%emt 0:01:24]} 13. Nf2 {[%emt 0:00:46]} a5 {[%emt 0:00:27]} 14. Bd2 {[%emt 0:00:18]} a4 {[%emt 0:00:23]} 15. a3 {[%emt 0:00:06]} c5 {[%emt 0:00:26]} 16. Bf3 {[%emt 0:00:05]} Qc7 {[%emt 0:00:41]} 17. Qh2 {[%emt 0:00:23]} Rae8 {[%emt 0:01:22]} 18. Re2 {[%emt 0:00:26]} Nc8 {[%emt 0:00:13]} 19. Rae1 {[%emt 0:00:23]} Nd6 {[%emt 0:00:02]} 20. h4 {[%emt 0:00:55]} h5 {[%emt 0:00:54]} 21. Qg3 {[%emt 0:00:23]} Kh7 {[%emt 0:00:33]} 22. Nh3 {[%emt 0:05:05]} Bh6 {[%emt 0:00:01]} 23. c3 {[%emt 0:00:06]} c4 {[%emt 0:02:38]} 24. dxc4 {[%emt 0:00:07]} d3 {[%emt 0:01:07]} 25. Re3 {[%emt 0:00:41]} Nxc4 {[%emt 0:00:03]} 26. exf5 {[%emt 0:00:21]} Rxf5 {[%emt 0:00:17]} 27. Rxd3 {[%emt 0:02:05]} Nc5 {[%emt 0:00:38]} 28. Be4 {[%emt 0:00:55]} Nxd3 {[%emt 0:04:34]} 29. Bxf5 {[%emt 0:00:01]} gxf5 {[%emt 0:00:02]} 30. Qxd3 {[%emt 0:00:01]} Qc6 {[%emt 0:00:55]} 31. Qe2 {[%emt 0:00:21]} Rg8 {[%emt 0:00:17]} 32. Ng5+ {[%emt 0:00:28]} Bxg5 {[%emt 0:00:02]} 33. hxg5 {[%emt 0:00:10]} Kg6 {[%emt 0:00:46]} 34. Qxe6+ {[%emt 0:00:06]} Qxe6 {[%emt 0:00:01]} 35. Rxe6+ {[%emt 0:00:01]} Kf7 {[%emt 0:00:01]} 36. Rf6+ {[%emt 0:00:25]} Ke7 {[%emt 0:00:11]} 37. Be1 {[%emt 0:00:03]} Nxb2 {[%emt 0:00:38]} 38. Rxf5 {[%emt 0:00:16]} Nc4 {[%emt 0:00:01]} 39. Bf2 {[%emt 0:00:02]} b6 {[%emt 0:00:00]} 40. Rb5 {[%emt 0:00:24]} Rb8 {[%emt 0:00:07]} 41. f5 {[%emt 0:00:23]} Nxa3 {[%emt 0:00:01]} 42. Bc5+ {[%emt 0:00:04]} 1-0

[Event "HUN-ch Rapid 2019"]
[Site "Ajka"]
[Date "2019.07.21"]
[Round "10.6"]
[White "Popovics, Adam"]
[Black "Czebe, Attila"]
[Result "0-1"]
[ECO "B27"]
[WhiteElo "2365"]
[BlackElo "2436"]
[Annotator "NA"]
[PlyCount "46"]
[EventDate "2019.07.18"]
[EventType "swiss"]
[EventCountry "HUN"]
[SourceTitle "playchess.com"]
[Source "ChessBase"]
[SourceQuality "1"]
[TimeControl "1200+5"]

1. e4 {[%emt 0:00:02]} c5 {[%emt 0:00:12]} 2. Nf3 {[%emt 0:00:04]} b6 {[%emt 0:00:14]} 3. d4 {[%emt 0:00:19]} cxd4 {[%emt 0:00:02]} 4. Nxd4 {[%emt 0:00:02]} Bb7 {[%emt 0:00:00]} 5. Bd3 {[%emt 0:00:31]} g6 {[%emt 0:00:02]} 6. O-O {[%emt 0:00:55]} Bg7 {[%emt 0:00:02]} 7. Be3 {[%emt 0:00:34]} Nc6 {[%emt 0:00:06]} 8. Nxc6 {[%emt 0:00:43]} Bxc6 {[%emt 0:00:19]} 9. Nc3 {[%emt 0:00:10]} d6 {[%emt 0:01:09]} 10. Qd2 {[%emt 0:00:37]} Nf6 {[%emt 0:00:03]} 11. Bh6 {[%emt 0:00:55]} O-O {[%emt 0:00:05]} 12. Rae1 {[%emt 0:00:06]} Qd7 {[%emt 0:00:39]} 13. Bxg7 {[%emt 0:02:44]} Kxg7 {[%emt 0:00:02]} 14. f4 {[%emt 0:00:01]} b5 {[%emt 0:00:59]} 15. Kh1 {[%emt 0:02:02]} b4 {[%emt 0:00:16]} 16. Nd1 {[%emt 0:00:13]} a5 {[%emt 0:00:17]} 17. f5 {[%emt 0:01:28]} e5 {[%emt 0:00:31]} 18. fxe6 {[%emt 0:02:35]} fxe6 {[%emt 0:00:11]} 19. Ne3 {[%emt 0:01:33]} e5 {[%emt 0:00:08]} 20. c4 {[%emt 0:00:37]} Qa7 {[%emt 0:00:29]} 21. Nd5 {[%emt 0:00:50]} Bxd5 {[%emt 0:00:33]} 22. exd5 {[%emt 0:00:02]} Ng4 {[%emt 0:00:27]} 23. g3 {[%emt 0:01:25]} Qd4 {[%emt 0:00:01]} 0-1